[Event "Weekendtournooi Groningen & PK NOSBO"]
[Site "Groningen, Netherlands"]
[Date "2023.05.21"]
[Round "6.1"]
[White "Maatman, Nick"]
[Black "Kingma, Lukas"]
[Result "1-0"]
[TimeControl "90min + 30sec/move"]
[WhiteTitle "IM"]
[WhiteElo "2348"]
[BlackElo "1518"]

1. d4 {[%clk 01:26:30]} {[%emt 00:04:30]} Nf6 {[%clk 01:30:55]} {[%emt
00:00:37]} 2. c4 {[%clk 01:26:56]} g6 {[%clk 01:31:20]} {[%emt 00:00:24]} 3.
Nc3 {[%clk 01:26:27]} {[%emt 00:00:12]} Bg7 {[%clk 01:31:44]} {[%emt 00:00:38]}
4. e4 {[%clk 01:26:55]} d6 {[%clk 01:32:09]} {[%emt 00:00:35]} 5. Be2 {[%clk
01:26:53]} O-O {[%clk 01:32:32]} 6. Nf3 {[%clk 01:26:05]} {[%emt 00:01:08]} e5
{[%clk 01:32:44]} {[%emt 00:00:09]} 7. O-O {[%clk 01:26:02]} {[%emt 00:00:47]}
Nc6 {[%clk 01:32:48]} {[%emt 00:00:13]} 8. d5 {[%clk 01:26:28]} {[%emt
00:00:08]} Ne7 {[%clk 01:33:14]} {[%emt 00:00:05]} 9. b4 {[%clk 01:26:55]} Nh5
{[%clk 01:33:18]} {[%emt 00:00:21]} 10. Re1 {[%clk 01:22:36]} {[%emt 00:05:15]}
f5 {[%clk 01:33:31]} {[%emt 00:00:05]} 11. a4 {[%clk 01:19:00]} {[%emt
00:03:55]} a5 {[%clk 01:27:38]} {[%emt 00:06:22]} 12. bxa5 {[%clk 01:18:08]}
{[%emt 00:01:47]} Rxa5 {[%clk 01:28:06]} {[%emt 00:00:05]} 13. Ra3 {[%clk
01:15:31]} {[%emt 00:02:38]} Kh8 {[%clk 01:19:47]} {[%emt 00:08:49]} 14. exf5
{[%clk 01:04:29]} {[%emt 00:11:32]} Bxf5 {[%clk 01:13:10]} {[%emt 00:07:21]} 15.
Ng5 {[%clk 00:52:11]} {[%emt 00:12:37]} Nf6 {[%clk 01:11:02]} {[%emt 00:02:33]}
16. Bd2 {[%clk 00:38:06]} {[%emt 00:14:36]} Ra8 {[%clk 01:10:25]} {[%emt
00:01:39]} 17. g4 {[%clk 00:34:57]} {[%emt 00:03:16]} Bd7 {[%clk 01:08:57]}
{[%emt 00:01:48]} 18. Nce4 {[%clk 00:34:32]} {[%emt 00:00:56]} Nxe4 {[%clk
01:05:12]} {[%emt 00:04:15]} 19. Nxe4 {[%clk 00:35:00]} {[%emt 00:00:40]} b6
{[%clk 01:05:41]} 20. a5 {[%clk 00:24:50]} {[%emt 00:10:02]} Qc8 {[%clk
00:53:08]} {[%emt 00:13:12]} 21. f3 {[%clk 00:23:50]} {[%emt 00:01:20]} Ng8
{[%clk 00:47:36]} {[%emt 00:06:01]} 22. h3 {[%clk 00:23:34]} {[%emt 00:00:49]}
Nf6 {[%clk 00:45:49]} {[%emt 00:02:16]} 23. Nf2 {[%clk 00:21:44]} {[%emt
00:02:19]} c6 {[%clk 00:32:34]} {[%emt 00:13:45]} 24. dxc6 {[%clk 00:19:49]}
{[%emt 00:02:30]} Bxc6 {[%clk 00:32:50]} {[%emt 00:00:47]} 25. Bb4 {[%clk
00:19:53]} {[%emt 00:00:05]} bxa5 {[%clk 00:30:30]} {[%emt 00:02:34]} 26. Bxd6
{[%clk 00:19:29]} {[%emt 00:00:55]} Rd8 {[%clk 00:30:08]} {[%emt 00:00:49]} 27.
c5 {[%clk 00:19:36]} {[%emt 00:00:42]} Ne8 {[%clk 00:27:03]} {[%emt 00:03:37]}
28. Qd2 {[%clk 00:13:18]} {[%emt 00:06:27]} Nxd6 {[%clk 00:26:11]} {[%emt
00:01:46]} 29. cxd6 {[%clk 00:13:46]} a4 {[%clk 00:25:55]} {[%emt 00:00:25]} 30.
Rd1 {[%clk 00:12:56]} {[%emt 00:01:20]} Qe6 {[%clk 00:24:22]} {[%emt 00:02:20]}
31. Rc3 {[%clk 00:10:49]} {[%emt 00:02:30]} Qe8 {[%clk 00:14:58]} {[%emt
00:09:43]} 32. Qc1 {[%clk 00:09:50]} {[%emt 00:01:29]} Rdc8 {[%clk 00:10:49]}
{[%emt 00:05:12]} 33. Ne4 {[%clk 00:09:34]} {[%emt 00:00:22]} Bd7 {[%clk
00:10:45]} {[%emt 00:00:27]} 34. Bc4 {[%clk 00:08:31]} {[%emt 00:01:51]} Be6
{[%clk 00:05:28]} {[%emt 00:05:28]} 35. Bxe6 {[%clk 00:08:32]} {[%emt
00:00:31]} Qxe6 {[%clk 00:05:56]} {[%emt 00:00:04]} 36. Rxc8+ {[%clk 00:07:25]}
{[%emt 00:01:56]} Rxc8 {[%clk 00:06:08]} {[%emt 00:00:18]} 37. Qd2 {[%clk
00:04:56]} {[%emt 00:02:36]} Qd7 {[%clk 00:04:33]} {[%emt 00:02:05]} 38. Qa5
{[%clk 00:05:19]} {[%emt 00:00:29]} Rf8 {[%clk 00:02:52]} {[%emt 00:01:49]} 39.
Kg2 {[%clk 00:05:41]} {[%emt 00:00:44]} Qf7 {[%clk 00:02:45]} {[%emt 00:00:05]}
40. Qc3 {[%clk 00:03:49]} {[%emt 00:02:38]} Bf6 {[%clk 00:02:25]} {[%emt
00:00:31]} 41. d7 {[%clk 00:03:40]} {[%emt 00:00:42]} Qe7 {[%clk 00:01:28]}
{[%emt 00:01:24]} 42. Qc6 {[%clk 00:03:36]} {[%emt 00:00:43]} a3 {[%clk
00:01:16]} {[%emt 00:00:44]} 43. Qxf6+ {[%clk 00:02:47]} {[%emt 00:01:08]} Qxf6
{[%clk 00:01:31]} {[%emt 00:00:37]} 44. Nxf6 {[%clk 00:03:14]} {[%emt
00:00:10]} 1-0

[Event "Weekendtournooi Groningen & PK NOSBO"]
[Site "Groningen, Netherlands"]
[Date "2023.05.21"]
[Round "6.2"]
[White "Jacobs, Florian"]
[Black "Hummel, Paul"]
[Result "1/2-1/2"]
[TimeControl "90min + 30sec/move"]
[WhiteElo "2227"]
[BlackElo "2152"]

1. d4 {[%clk 01:30:55]} {[%emt 00:00:22]} Nf6 {[%clk 01:30:20]} {[%emt
00:00:10]} 2. c4 {[%clk 01:31:06]} {[%emt 00:00:45]} e6 {[%clk 01:30:45]} 3.
Nf3 {[%clk 01:31:18]} {[%emt 00:00:07]} b6 {[%clk 01:30:59]} {[%emt 00:00:08]}
4. g3 {[%clk 01:31:36]} {[%emt 00:00:17]} Bb7 {[%clk 01:31:25]} 5. Bg2 {[%clk
01:31:59]} {[%emt 00:00:08]} Be7 {[%clk 01:31:51]} {[%emt 00:00:08]} 6. O-O
{[%clk 01:32:18]} {[%emt 00:00:05]} O-O {[%clk 01:32:18]} {[%emt 00:00:14]} 7.
Re1 {[%clk 01:32:28]} {[%emt 00:00:11]} d6 {[%clk 01:28:51]} {[%emt 00:04:27]}
8. Nc3 {[%clk 01:32:25]} {[%emt 00:00:08]} Ne4 {[%clk 01:27:21]} {[%emt
00:01:52]} 9. Ng5 {[%clk 01:31:54]} {[%emt 00:01:01]} Nxc3 {[%clk 01:24:24]}
{[%emt 00:03:36]} 10. Qc2 {[%clk 01:31:43]} {[%emt 00:00:32]} Ne4 {[%clk
01:24:38]} {[%emt 00:00:42]} 11. Bxe4 {[%clk 01:29:42]} {[%emt 00:02:33]} Bxe4
{[%clk 01:25:03]} 12. Qxe4 {[%clk 01:30:00]} {[%emt 00:00:09]} Bxg5 {[%clk
01:25:31]} 13. Qxa8 {[%clk 01:29:11]} {[%emt 00:01:04]} Bf6 {[%clk 01:25:04]}
{[%emt 00:00:54]} 14. Qe4 {[%clk 01:28:31]} {[%emt 00:01:09]} d5 {[%clk
01:22:35]} {[%emt 00:03:03]} 15. cxd5 {[%clk 01:28:23]} {[%emt 00:00:37]} exd5
{[%clk 01:23:03]} {[%emt 00:00:19]} 16. Qd3 {[%clk 01:27:08]} {[%emt 00:01:26]}
Nc6 {[%clk 01:17:28]} {[%emt 00:06:04]} 17. Be3 {[%clk 01:25:50]} {[%emt
00:01:48]} Ne7 {[%clk 01:17:55]} {[%emt 00:00:41]} 18. Rac1 {[%clk 01:25:52]}
{[%emt 00:00:10]} Qd7 {[%clk 01:17:17]} {[%emt 00:00:49]} 19. f3 {[%clk
01:02:41]} {[%emt 00:23:43]} h5 {[%clk 01:11:24]} {[%emt 00:06:20]} 20. Bf2
{[%clk 00:44:45]} {[%emt 00:18:26]} Nf5 {[%clk 00:55:05]} {[%emt 00:16:49]} 21.
Rc2 {[%clk 00:41:52]} {[%emt 00:03:24]} Rc8 {[%clk 00:49:29]} {[%emt 00:06:05]}
22. Rec1 {[%clk 00:41:59]} {[%emt 00:00:47]} h4 {[%clk 00:47:45]} {[%emt
00:01:49]} 23. g4 {[%clk 00:40:29]} {[%emt 00:02:01]} Ne7 {[%clk 00:48:12]}
{[%emt 00:00:36]} 24. Qa6 {[%clk 00:38:10]} {[%emt 00:02:16]} c6 {[%clk
00:44:33]} {[%emt 00:04:09]} 25. a4 {[%clk 00:37:21]} {[%emt 00:01:20]} Bg5
{[%clk 00:43:25]} {[%emt 00:01:37]} 26. e3 {[%clk 00:37:41]} {[%emt 00:00:09]}
f5 {[%clk 00:43:35]} {[%emt 00:00:43]} 27. f4 {[%clk 00:34:01]} {[%emt
00:03:47]} fxg4 {[%clk 00:42:04]} {[%emt 00:02:30]} 28. fxg5 {[%clk 00:34:23]}
Nf5 {[%clk 00:40:51]} {[%emt 00:01:21]} 29. Qe2 {[%clk 00:32:37]} {[%emt
00:02:17]} g3 {[%clk 00:40:40]} {[%emt 00:00:44]} 30. hxg3 {[%clk 00:33:02]}
{[%emt 00:00:09]} hxg3 {[%clk 00:41:08]} 31. Be1 {[%clk 00:32:58]} {[%emt
00:00:29]} Re8 {[%clk 00:39:08]} {[%emt 00:02:31]} 32. Rc3 {[%clk 00:23:56]}
{[%emt 00:09:31]} c5 {[%clk 00:32:49]} {[%emt 00:06:50]} 33. Qg4 {[%clk
00:22:16]} {[%emt 00:02:11]} Re4 {[%clk 00:33:10]} {[%emt 00:00:25]} 34. Qh3
{[%clk 00:14:58]} {[%emt 00:07:36]} Rh4 {[%clk 00:28:53]} {[%emt 00:04:56]} 35.
Qf1 {[%clk 00:13:05]} {[%emt 00:02:28]} Qe6 {[%clk 00:22:25]} {[%emt 00:06:40]}
36. Qf3 {[%clk 00:08:40]} {[%emt 00:05:37]} Rh3 {[%clk 00:20:13]} {[%emt
00:02:22]} 37. Qg4 {[%clk 00:08:24]} {[%emt 00:00:56]} Rh4 {[%clk 00:20:27]}
{[%emt 00:00:10]} 38. Qf3 {[%clk 00:08:53]} Rh3 {[%clk 00:15:19]} {[%emt
00:05:12]} 39. Qg4 {[%clk 00:04:23]} {[%emt 00:05:00]} Rh4 {[%clk 00:15:43]}
{[%emt 00:00:36]} 40. Qf3 {[%clk 00:04:51]} Rh3 {[%emt 00:00:08]} 1/2-1/2

[Event "Weekendtournooi Groningen & PK NOSBO"]
[Site "Groningen, Netherlands"]
[Date "2023.05.21"]
[Round "6.3"]
[White "Hommes, Elmar"]
[Black "Labruyere, Roger"]
[Result "1/2-1/2"]
[TimeControl "90min + 30sec/move"]
[WhiteElo "2050"]
[BlackElo "2169"]

1. d4 {[%clk 01:30:30]} Nf6 {[%clk 01:27:55]} {[%emt 00:03:01]} 2. Nf3 {[%clk
01:30:51]} c5 {[%clk 01:28:19]} 3. c4 {[%clk 01:30:55]} {[%emt 00:00:31]} cxd4
{[%clk 01:25:59]} {[%emt 00:03:18]} 4. Nxd4 {[%clk 01:31:05]} Nc6 {[%clk
01:23:50]} {[%emt 00:02:12]} 5. Nc3 {[%clk 01:30:49]} {[%emt 00:00:47]} a6
{[%clk 01:21:06]} {[%emt 00:03:19]} 6. e4 {[%clk 01:28:38]} {[%emt 00:02:40]}
d6 {[%clk 01:15:49]} {[%emt 00:05:42]} 7. Be2 {[%clk 01:27:38]} {[%emt
00:01:32]} g6 {[%clk 01:16:11]} {[%emt 00:00:20]} 8. O-O {[%clk 01:26:17]}
{[%emt 00:01:35]} Bg7 {[%clk 01:16:35]} {[%emt 00:00:42]} 9. Be3 {[%clk
01:26:02]} {[%emt 00:00:10]} O-O {[%clk 01:15:58]} {[%emt 00:01:44]} 10. f3
{[%clk 01:23:38]} {[%emt 00:02:30]} Bd7 {[%clk 01:13:54]} {[%emt 00:02:22]} 11.
Qd2 {[%clk 01:22:34]} {[%emt 00:01:34]} Rb8 {[%clk 01:13:19]} {[%emt 00:01:31]}
12. Rac1 {[%clk 01:16:34]} {[%emt 00:06:03]} Ne8 {[%clk 01:06:25]} {[%emt
00:07:24]} 13. b3 {[%clk 01:03:12]} {[%emt 00:13:55]} Nc7 {[%clk 01:00:29]}
{[%emt 00:06:23]} 14. Nxc6 {[%clk 01:00:29]} {[%emt 00:03:14]} bxc6 {[%clk
00:55:24]} {[%emt 00:05:37]} 15. c5 {[%clk 00:56:22]} {[%emt 00:04:38]} d5
{[%clk 00:54:48]} {[%emt 00:01:03]} 16. exd5 {[%clk 00:54:54]} {[%emt
00:01:58]} Bxc3 {[%clk 00:55:10]} {[%emt 00:00:14]} 17. Rxc3 {[%clk 00:52:11]}
{[%emt 00:03:12]} Nxd5 {[%clk 00:53:44]} {[%emt 00:01:49]} 18. Rc4 {[%clk
00:52:22]} {[%emt 00:00:46]} Nxe3 {[%clk 00:53:40]} {[%emt 00:00:11]} 19. Qxe3
{[%clk 00:52:46]} {[%emt 00:00:10]} Be6 {[%clk 00:53:40]} {[%emt 00:00:26]} 20.
Rh4 {[%clk 00:47:41]} {[%emt 00:05:33]} h5 {[%clk 00:52:59]} {[%emt 00:01:33]}
21. Rd1 {[%clk 00:41:19]} {[%emt 00:06:30]} Qa5 {[%clk 00:40:29]} {[%emt
00:12:59]} 22. Rxh5 {[%clk 00:32:15]} {[%emt 00:09:34]} Rfd8 {[%clk 00:35:03]}
{[%emt 00:06:17]} 23. Qe5 {[%clk 00:25:35]} {[%emt 00:06:57]} Rxd1+ {[%clk
00:34:51]} {[%emt 00:01:07]} 24. Bxd1 {[%clk 00:26:02]} gxh5 {[%clk 00:34:01]}
{[%emt 00:00:52]} 25. Qxb8+ {[%clk 00:26:30]} {[%emt 00:00:05]} Kg7 {[%clk
00:33:48]} {[%emt 00:00:46]} 26. Qe5+ {[%clk 00:26:50]} {[%emt 00:00:04]} Kg8
{[%clk 00:34:07]} {[%emt 00:00:12]} 27. Qb8+ {[%clk 00:18:49]} {[%emt
00:08:28]} Kg7 {[%clk 00:34:29]} {[%emt 00:00:09]} 28. Qe5+ {[%clk 00:18:55]}
{[%emt 00:00:23]} Kg8 {[%clk 00:34:49]} {[%emt 00:00:10]} 29. Qb8+ {[%emt
00:00:24]} 1/2-1/2

[Event "Weekendtournooi Groningen & PK NOSBO"]
[Site "Groningen, Netherlands"]
[Date "2023.05.21"]
[Round "6.4"]
[White "De Boer, Eelke"]
[Black "Bruggink, Tycho"]
[Result "1-0"]
[TimeControl "90min + 30sec/move"]
[WhiteTitle "FM"]
[WhiteElo "2293"]
[BlackElo "1873"]

1. e4 {[%clk 01:23:01]} c5 {[%clk 01:30:58]} 2. Nc3 {[%clk 01:23:00]} {[%emt
00:00:20]} Nc6 {[%clk 01:31:17]} {[%emt 00:00:14]} 3. Bb5 {[%clk 01:21:09]}
{[%emt 00:02:22]} d6 {[%clk 01:31:19]} {[%emt 00:00:27]} 4. Nf3 {[%clk
01:18:03]} {[%emt 00:03:33]} Bd7 {[%clk 01:31:30]} {[%emt 00:00:22]} 5. a4
{[%clk 01:18:03]} {[%emt 00:00:27]} Nf6 {[%clk 01:28:45]} {[%emt 00:03:16]} 6.
d3 {[%clk 01:11:22]} {[%emt 00:07:09]} g6 {[%clk 01:28:53]} {[%emt 00:00:42]} 7.
Bg5 {[%clk 01:04:10]} {[%emt 00:07:21]} Bg7 {[%clk 01:29:15]} {[%emt 00:00:10]}
8. Qd2 {[%clk 01:04:34]} {[%emt 00:00:09]} h6 {[%clk 01:28:45]} {[%emt
00:01:22]} 9. Bh4 {[%clk 01:03:37]} {[%emt 00:01:03]} Ng4 {[%clk 01:27:30]}
{[%emt 00:01:44]} 10. O-O {[%clk 01:00:33]} {[%emt 00:03:39]} O-O {[%clk
01:05:51]} {[%emt 00:22:41]} 11. Nd1 {[%clk 00:52:19]} {[%emt 00:08:06]} Nd4
{[%clk 01:03:07]} {[%emt 00:03:46]} 12. Nxd4 {[%clk 00:49:53]} {[%emt
00:02:54]} cxd4 {[%clk 01:03:25]} {[%emt 00:00:09]} 13. h3 {[%clk 00:43:04]}
{[%emt 00:06:54]} Ne5 {[%clk 00:58:26]} {[%emt 00:05:29]} 14. f4 {[%clk
00:42:17]} {[%emt 00:01:20]} Bxb5 {[%clk 00:54:51]} {[%emt 00:04:05]} 15. axb5
{[%clk 00:42:40]} {[%emt 00:00:08]} Nd7 {[%clk 00:55:18]} {[%emt 00:00:23]} 16.
c4 {[%clk 00:40:24]} {[%emt 00:02:22]} dxc3 {[%clk 00:50:00]} {[%emt 00:05:48]}
17. bxc3 {[%clk 00:40:37]} {[%emt 00:00:38]} Qb6+ {[%clk 00:50:14]} {[%emt
00:00:05]} 18. Kh1 {[%clk 00:38:05]} {[%emt 00:03:00]} e6 {[%clk 00:47:28]}
{[%emt 00:03:07]} 19. Rb1 {[%clk 00:31:03]} {[%emt 00:07:33]} f5 {[%clk
00:44:51]} {[%emt 00:03:08]} 20. Ne3 {[%clk 00:26:08]} {[%emt 00:05:24]} Rfe8
{[%clk 00:36:32]} {[%emt 00:08:50]} 21. exf5 {[%clk 00:22:44]} {[%emt
00:04:14]} gxf5 {[%clk 00:36:15]} {[%emt 00:00:29]} 22. d4 {[%clk 00:21:57]}
{[%emt 00:01:14]} Rac8 {[%clk 00:33:44]} {[%emt 00:03:43]} 23. g4 {[%clk
00:19:36]} {[%emt 00:02:19]} fxg4 {[%clk 00:23:04]} {[%emt 00:11:00]} 24. hxg4
{[%clk 00:19:49]} {[%emt 00:00:43]} d5 {[%clk 00:22:20]} {[%emt 00:01:02]} 25.
Qd3 {[%clk 00:12:07]} {[%emt 00:07:58]} Nf6 {[%clk 00:20:13]} {[%emt 00:02:37]}
26. Bxf6 {[%clk 00:12:14]} {[%emt 00:00:22]} Bxf6 {[%clk 00:20:41]} {[%emt
00:00:50]} 27. g5 {[%clk 00:12:32]} Bg7 {[%clk 00:20:26]} {[%emt 00:00:15]} 28.
gxh6 {[%clk 00:08:01]} {[%emt 00:05:07]} Bxh6 {[%clk 00:20:44]} {[%emt
00:00:04]} 29. Qg6+ {[%clk 00:08:17]} {[%emt 00:00:12]} Bg7 {[%clk 00:21:11]}
{[%emt 00:00:18]} 30. Ng4 {[%clk 00:08:11]} {[%emt 00:00:21]} Re7 {[%clk
00:19:27]} {[%emt 00:02:14]} 31. Rf3 {[%clk 00:04:27]} {[%emt 00:04:48]} Rc6
{[%clk 00:15:01]} {[%emt 00:04:22]} 32. Nf6+ {[%clk 00:02:02]} {[%emt
00:03:03]} Kf8 {[%clk 00:15:24]} 33. Nh7+ {[%clk 00:02:29]} {[%emt 00:00:05]}
Kg8 {[%clk 00:15:50]} {[%emt 00:00:08]} 34. Nf6+ {[%clk 00:02:53]} {[%emt
00:00:15]} Kf8 {[%clk 00:16:18]} 35. Rh3 {[%clk 00:02:59]} {[%emt 00:00:10]}
Rf7 {[%clk 00:16:22]} {[%emt 00:00:41]} 36. Nh7+ {[%clk 00:02:51]} {[%emt
00:00:23]} Ke7 {[%clk 00:16:34]} {[%emt 00:00:18]} 37. Ng5 {[%clk 00:03:10]}
{[%emt 00:00:12]} 1-0

[Event "Weekendtournooi Groningen & PK NOSBO"]
[Site "Groningen, Netherlands"]
[Date "2023.05.21"]
[Round "6.6"]
[White "Aden, Tammo"]
[Black "Keuning, Selwin"]
[Result "1/2-1/2"]
[TimeControl "90min + 30sec/move"]
[WhiteElo "1998"]
[BlackElo "2148"]

1. d4 {[%clk 01:30:58]} {[%emt 00:00:07]} d5 {[%clk 01:30:54]} {[%emt
00:00:04]} 2. Nf3 {[%clk 01:31:17]} {[%emt 00:00:14]} Nf6 {[%clk 01:31:00]}
{[%emt 00:00:18]} 3. c4 {[%clk 01:31:39]} {[%emt 00:00:27]} c6 {[%clk
01:31:23]} 4. g3 {[%clk 01:32:02]} Bf5 {[%clk 01:31:48]} {[%emt 00:00:05]} 5.
Bg2 {[%clk 01:32:12]} {[%emt 00:00:15]} e6 {[%clk 01:32:10]} {[%emt 00:00:46]}
6. Qb3 {[%clk 01:31:50]} {[%emt 00:00:24]} Qb6 {[%clk 01:32:16]} {[%emt
00:00:46]} 7. c5 {[%clk 01:32:14]} Qc7 {[%clk 01:32:42]} 8. Bf4 {[%clk
01:32:18]} {[%emt 00:00:15]} Qc8 {[%clk 01:33:10]} 9. O-O {[%clk 01:30:53]}
{[%emt 00:02:21]} h6 {[%clk 01:30:12]} {[%emt 00:02:54]} 10. Nc3 {[%clk
01:30:00]} {[%emt 00:01:56]} Nbd7 {[%clk 01:30:05]} {[%emt 00:00:16]} 11. Rac1
{[%clk 01:23:55]} {[%emt 00:06:24]} Be7 {[%clk 01:28:43]} {[%emt 00:01:50]} 12.
Ne5 {[%clk 01:15:21]} {[%emt 00:09:04]} O-O {[%clk 01:16:03]} {[%emt 00:13:09]}
13. Rfe1 {[%clk 01:05:30]} {[%emt 00:10:46]} Rd8 {[%clk 00:56:26]} {[%emt
00:19:42]} 14. Qa4 {[%clk 00:42:39]} {[%emt 00:23:21]} Bh7 {[%clk 00:34:25]}
{[%emt 00:22:32]} 15. b4 {[%clk 00:35:07]} {[%emt 00:08:07]} Nxe5 {[%clk
00:27:15]} {[%emt 00:07:32]} 16. Bxe5 {[%clk 00:34:12]} {[%emt 00:01:26]} Nd7
{[%clk 00:21:09]} {[%emt 00:06:37]} 17. Bf4 {[%clk 00:18:38]} {[%emt 00:16:04]}
b5 {[%clk 00:19:04]} {[%emt 00:02:38]} 18. Qb3 {[%clk 00:17:07]} {[%emt
00:02:06]} Bf6 {[%clk 00:13:22]} {[%emt 00:06:05]} 19. Rcd1 {[%clk 00:15:50]}
{[%emt 00:02:09]} a5 {[%clk 00:10:22]} {[%emt 00:03:08]} 20. a3 {[%clk
00:15:38]} {[%emt 00:01:12]} axb4 {[%clk 00:09:23]} {[%emt 00:01:05]} 21. axb4
{[%clk 00:16:00]} {[%emt 00:00:05]} Qa6 {[%clk 00:09:06]} {[%emt 00:00:43]} 22.
e4 {[%clk 00:12:41]} {[%emt 00:03:50]} Qa3 {[%clk 00:07:55]} {[%emt 00:01:42]}
23. Qxa3 {[%clk 00:10:21]} {[%emt 00:02:52]} Rxa3 {[%clk 00:08:23]} {[%emt
00:00:05]} 24. exd5 {[%clk 00:10:18]} {[%emt 00:00:27]} exd5 {[%clk 00:07:08]}
{[%emt 00:01:50]} 25. Nxd5 {[%clk 00:04:26]} {[%emt 00:06:48]} cxd5 {[%clk
00:07:27]} {[%emt 00:00:09]} 26. c6 {[%clk 00:04:54]} g5 {[%clk 00:04:56]}
{[%emt 00:02:36]} 27. Bc7 {[%clk 00:03:11]} {[%emt 00:02:11]} Rc8 {[%emt
00:01:30]} 1/2-1/2

[Event "Weekendtournooi Groningen & PK NOSBO"]
[Site "Groningen, Netherlands"]
[Date "2023.05.21"]
[Round "6.7"]
[White "Kardoeus, David"]
[Black "Aden, Keno"]
[Result "1/2-1/2"]
[TimeControl "90min + 30sec/move"]
[WhiteElo "2158"]
[BlackElo "1701"]

1. c4 {[%clk 01:16:55]} c6 {[%clk 01:30:32]} {[%emt 00:00:28]} 2. d4 {[%clk
01:16:49]} {[%emt 00:00:51]} d5 {[%clk 01:30:52]} {[%emt 00:00:05]} 3. Nc3
{[%clk 01:17:01]} {[%emt 00:00:11]} Nf6 {[%clk 01:31:10]} {[%emt 00:00:10]} 4.
cxd5 {[%clk 01:16:26]} {[%emt 00:01:06]} cxd5 {[%clk 01:31:31]} {[%emt
00:00:09]} 5. f3 {[%clk 01:16:31]} {[%emt 00:00:23]} Nc6 {[%clk 01:31:46]}
{[%emt 00:00:22]} 6. e4 {[%clk 01:16:52]} {[%emt 00:00:09]} dxe4 {[%clk
01:32:04]} {[%emt 00:00:06]} 7. d5 {[%clk 01:16:55]} {[%emt 00:00:26]} Ne5
{[%clk 01:31:25]} {[%emt 00:01:12]} 8. fxe4 {[%clk 01:17:18]} {[%emt 00:00:04]}
Qb6 {[%clk 01:24:45]} {[%emt 00:07:33]} 9. Nf3 {[%clk 01:01:09]} {[%emt
00:16:38]} Nxf3+ {[%clk 01:05:22]} {[%emt 00:19:30]} 10. Qxf3 {[%clk 00:58:44]}
{[%emt 00:02:54]} e6 {[%clk 00:59:36]} {[%emt 00:06:18]} 11. Bb5+ {[%clk
00:57:35]} {[%emt 00:01:37]} Bd7 {[%clk 00:58:28]} {[%emt 00:01:38]} 12. Be3
{[%clk 00:57:40]} {[%emt 00:00:47]} Bc5 {[%clk 00:54:46]} {[%emt 00:03:53]} 13.
Bxc5 {[%clk 00:53:57]} {[%emt 00:04:41]} Qxc5 {[%clk 00:55:09]} 14. Bxd7+
{[%clk 00:53:36]} {[%emt 00:00:28]} Nxd7 {[%clk 00:55:32]} {[%emt 00:00:09]} 15.
dxe6 {[%clk 00:52:33]} {[%emt 00:01:30]} fxe6 {[%clk 00:55:56]} {[%emt
00:00:26]} 16. O-O-O {[%clk 00:47:36]} {[%emt 00:05:12]} O-O-O {[%clk
00:48:46]} {[%emt 00:07:34]} 17. Qg3 {[%clk 00:47:39]} {[%emt 00:00:45]} Nf6
{[%clk 00:39:41]} {[%emt 00:09:18]} 18. Kb1 {[%clk 00:46:21]} {[%emt 00:01:49]}
Qc7 {[%clk 00:34:05]} {[%emt 00:06:14]} 19. e5 {[%clk 00:43:02]} {[%emt
00:03:41]} Nh5 {[%clk 00:26:51]} {[%emt 00:08:05]} 20. Qe3 {[%clk 00:39:45]}
{[%emt 00:03:33]} Rhf8 {[%clk 00:21:56]} {[%emt 00:05:18]} 21. Rxd8+ {[%clk
00:31:59]} {[%emt 00:08:14]} Qxd8 {[%clk 00:21:52]} {[%emt 00:00:34]} 22. Nb5
{[%clk 00:31:21]} {[%emt 00:01:24]} Qd5 {[%clk 00:18:29]} {[%emt 00:03:40]} 23.
Qa3 {[%clk 00:25:10]} {[%emt 00:06:40]} Rf2 {[%clk 00:13:34]} {[%emt 00:05:47]}
24. Rc1+ {[%clk 00:18:25]} {[%emt 00:07:13]} Kd8 {[%clk 00:13:20]} {[%emt
00:00:24]} 25. Qxa7 {[%clk 00:14:28]} {[%emt 00:04:29]} Rxb2+ {[%clk 00:07:29]}
{[%emt 00:06:22]} 26. Kxb2 {[%clk 00:05:43]} {[%emt 00:10:00]} Qxb5+ {[%clk
00:07:54]} 27. Ka3 {[%clk 00:05:59]} Qd3+ {[%clk 00:07:30]} {[%emt 00:00:25]}
28. Kb4 {[%clk 00:01:09]} {[%emt 00:05:20]} Qe4+ {[%clk 00:01:48]} {[%emt
00:06:12]} 29. Rc4 {[%clk 00:01:03]} {[%emt 00:00:39]} Qxe5 {[%clk 00:01:48]}
{[%emt 00:00:27]} 30. Qa8+ {[%clk 00:01:04]} {[%emt 00:00:29]} Ke7 {[%clk
00:01:56]} {[%emt 00:00:28]} 31. Qxb7+ {[%clk 00:01:29]} {[%emt 00:00:05]} Kf6
{[%clk 00:02:17]} {[%emt 00:00:06]} 32. Qf3+ {[%clk 00:01:52]} {[%emt
00:00:14]} Ke7 {[%clk 00:01:57]} {[%emt 00:00:43]} 33. g4 {[%clk 00:01:34]}
{[%emt 00:00:48]} Qb8+ {[%clk 00:02:00]} {[%emt 00:00:25]} 34. Kc3 {[%clk
00:01:46]} {[%emt 00:00:41]} Nf6 {[%clk 00:02:21]} {[%emt 00:00:14]} 35. Qc6
{[%clk 00:01:08]} {[%emt 00:00:39]} Nd5+ {[%clk 00:02:28]} {[%emt 00:00:25]} 36.
Kd4 {[%clk 00:00:56]} {[%emt 00:01:07]} Qb2+ {[%clk 00:01:40]} {[%emt
00:00:51]} 37. Kc5 {[%clk 00:00:45]} {[%emt 00:00:48]} Qf2+ {[%clk 00:01:51]}
{[%emt 00:00:13]} 38. Kb5 {[%clk 00:00:53]} {[%emt 00:00:22]} Qb2+ {[%clk
00:02:06]} {[%emt 00:00:36]} 39. Kc5 {[%clk 00:00:41]} {[%emt 00:00:21]} Qf2+
{[%clk 00:02:29]} {[%emt 00:00:39]} 40. Kb5 {[%clk 00:01:08]} Qb2+ {[%clk
00:02:52]} 41. Ka5 {[%clk 00:00:39]} {[%emt 00:00:36]} Qxa2+ {[%clk 00:02:41]}
{[%emt 00:00:46]} 42. Qa4 {[%clk 00:00:39]} {[%emt 00:00:25]} Qd2+ {[%clk
00:02:18]} {[%emt 00:00:53]} 43. Ka6 {[%clk 00:01:08]} {[%emt 00:00:27]} Qxh2
{[%clk 00:01:54]} {[%emt 00:00:28]} 44. Rc6 {[%clk 00:00:55]} {[%emt 00:00:50]}
Qb2 {[%clk 00:00:43]} {[%emt 00:01:56]} 45. Ka7 {[%clk 00:01:04]} {[%emt
00:00:04]} Qf2+ {[%clk 00:00:36]} {[%emt 00:00:33]} 46. Kb7 {[%clk 00:01:22]}
{[%emt 00:00:13]} Qb2+ {[%clk 00:00:50]} {[%emt 00:00:21]} 47. Ka7 {[%clk
00:00:54]} {[%emt 00:00:52]} Qf2+ {[%clk 00:00:54]} {[%emt 00:00:26]} 48. Kb7
{[%clk 00:00:43]} {[%emt 00:00:40]} Qb2+ {[%clk 00:01:17]} {[%emt 00:00:35]} 49.
Ka7 {[%clk 00:00:48]} {[%emt 00:00:24]} Qf2+ {[%clk 00:01:38]} 50. Kb7 {[%clk
00:00:44]} {[%emt 00:00:16]} 1/2-1/2